[Event "Catalonia Championship Absolute 2024"]
[Site "Salou Tarragona"]
[Date "2024.05.12"]
[Round "1.1"]
[White "Alsina Leal, Daniel"]
[Black "Riera Morilla, Elisabeth"]
[Result "1-0"]
[ECO "C84"]
[WhiteElo "2510"]
[BlackElo "1951"]
[Annotator "TA"]
[PlyCount "79"]
[EventDate "2024.05.06"]
[EventType "k.o."]
[EventCountry "ESP"]
[SourceTitle "playchess.com"]
[Source "ChessBase"]
[SourceQuality "1"]
[TimeControl "5400+30"]

{[%evp 18,79,22,20,22,25,19,7,41,40,99,116,106,96,103,94,91,96,117,107,112,85,92,89,93,76,108,100,116,110,140,140,135,117,120,114,131,113,129,110,289,275,301,316,327,322,354,378,700,663,958,854,919,863,1271,1256,1737,1727,1724,1767,1518,753,2536,1543]} 1. e4 {[%emt 1:31:00]} e5 {[%emt 1:31:00]} 2. Nf3 {[%emt 0:00:30]} Nc6 {[%emt 0:00:30]} 3. Bb5 {[%emt 0:00:30]} a6 {[%emt 0:00:30]} 4. Ba4 {[%emt 0:00:30]} Nf6 {[%emt 0:00:30]} 5. O-O {[%emt 0:00:30]} b5 {[%emt 0:00:30][%cal Bb7b5,Bb5b4][%mdl 32]} 6. Bb3 {[%emt 0:00:30]} Be7 {[%emt 0:00:30]} 7. a4 {[%emt 0:00:30]} Bb7 {[%emt 0:00:30]} 8. d3 {[%emt 0:00:30]} d6 {[%emt 0:00:30]} 9. Nc3 {[%emt 0:00:30]} b4 {[%emt 0:00:30]} 10. Ne2 {[%emt 0:00:30]} O-O {[%emt 0:00:30]} 11. a5 {[%emt 0:00:30]} Bc8 {[%emt 0:00:30]} 12. Bd2 {[%emt 0:00:30]} Bg4 {[%emt 0:00:30] The position is equal.} 13. Ba4 {[%emt 0:00:30]} Nb8 {[%emt 0:00:30]} (13... Bd7 $14) 14. Bxb4 $16 {[%emt 0:00:30]} Bxf3 {[%emt 0:00:30]} 15. gxf3 {[%emt 0:00:30]} Nh5 {[%emt 0:00:30]} 16. Kh1 {[%emt 0:00:30]} Nd7 {[%emt 0:00:30]} 17. Bd2 {[%emt 0:00:30]} Nc5 {[%emt 0:00:30]} 18. Bc6 {[%emt 0:00:30]} Rb8 {[%emt 0:00:30]} 19. b4 {[%emt 0:00:30]} Ne6 {[%emt 0:00:30] [#]} 20. f4 $1 {[%emt 0:00:30]} exf4 {[%emt 0:00:30]} 21. c3 {[%emt 0:00:30]} Kh8 {[%emt 0:00:30]} 22. Ng1 {[%emt 0:00:30]} g6 {[%emt 0:00:30]} 23. Re1 {[%emt 0:00:30]} Bh4 {[%emt 0:00:30]} 24. Qe2 {[%emt 0:00:30]} Qc8 {[%emt 0:00:30]} 25. Nf3 {[%emt 0:00:30] Against Ng5} Bf6 {[%emt 0:00:30]} 26. e5 {[%emt 0:00:30]} Bg7 {[%emt 0:00:30]} 27. d4 {[%emt 0:00:30]} Nd8 {[%emt 0:00:30]} 28. Bd5 $36 {[%emt 0:00:30][%mdl 2048] Black is under strong pressure. White is more active.} c6 $2 {[%emt 0:00:30]} (28... Re8 $16 29. Qd3 dxe5) 29. Bc4 $18 {[%emt 0:00:30]} Ra8 {[%emt 0:00:30]} 30. exd6 {[%emt 0:00:30]} Qh3 {[%emt 0:00:30]} 31. Ng5 {[%emt 0:00:30]} (31. Bxa6 Rxa6 32. Qxa6 Qxf3+ 33. Kg1 Qg4+ 34. Kh1 Qf3+ 35. Kg1 Qg4+ 36. Kh1 Qf3+ $11) 31... Qh4 {[%emt 0:00:30]} 32. Rg1 {[%emt 0:00:30][%cal Og1g4] [#] Rg4! is the strong threat.} h6 $2 {[%emt 0:00:30]} (32... f6 33. Nf3 Qh3) 33. Rg4 {[%emt 0:00:30] White is clearly winning.} Ng3+ {[%emt 0:00:30]} 34. fxg3 {[%emt 0:00:30]} Qh5 {[%emt 0:00:30]} 35. Bxf4 {[%emt 0:00:30][%cal Bd2f4,Bf4g5,Bg5e7][%mdl 32]} hxg5 {[%emt 0:00:30]} 36. Bxg5 {[%emt 0:00:30]} Kg8 {[%emt 0:00:30]} 37. Rf1 {[%emt 0:00:30]} ({Less strong is} 37. Bxa6 Rxa6 38. Be7 Re8 39. Qxa6 Qxg4 $16) 37... Ra7 {[%emt 0:00:30]} 38. Be7 {[%emt 0:00:30]} ({Weaker is} 38. Bxa6 Rxa6 39. d7 Ne6 $18) 38... Re8 {[%emt 0:00:30]} 39. Re4 {[%emt 0:00:30]} (39. Bxa6 Rxa6 40. Qxa6 Qxg4 $16) 39... Qh3 {[%emt 0:00:30]} 40. Qf3 {[%emt 0:00:30] Black got outplayed after the opening.   Weighted Error Value: White=0.03 (flawless) /Black=0.46.  Loses game:     	---       	Black=1      Mistake:       	---       	Black=2      Inaccurate:     	---       	Black=3      OK:         	White=13    	Black=6      Best:        	White=4     	Black=1} 1-0

[Event "Catalonia Championship Absolute 2024"]
[Site "Salou Tarragona"]
[Date "2024.05.12"]
[Round "1.1"]
[White "Guerra Mendez, Jose Angel"]
[Black "Guasch Figuerola, Agusti"]
[Result "1-0"]
[ECO "B07"]
[WhiteElo "2489"]
[BlackElo "1991"]
[Annotator "TA"]
[PlyCount "73"]
[EventDate "2024.05.06"]
[EventType "k.o."]
[EventCountry "ESP"]
[SourceTitle "playchess.com"]
[Source "ChessBase"]
[SourceQuality "1"]
[TimeControl "5400+30"]

{[%evp 16,73,57,56,55,56,59,47,58,61,65,68,68,79,75,75,65,58,232,247,327,347,282,333,348,364,354,359,344,356,381,267,245,220,233,172,167,167,174,106,101,81,168,151,171,117,103,115,301,284,282,271,342,357,332,349,870,861,29994,29995]} 1. e4 {[%emt 0:00:03]} g6 {[%emt 0:00:04]} 2. d4 {[%emt 0:00:17]} Bg7 {[%emt 0:00:06]} 3. Nf3 {[%emt 0:00:32]} d6 {[%emt 0:00:21]} 4. c3 {[%emt 0:01:05]} Nf6 {[%emt 0:00:30]} 5. Bd3 {[%emt 0:00:42]} O-O {[%emt 0:02:36]} 6. O-O {[%emt 0:00:12]} Nc6 {[%emt 0:03:45]} 7. Re1 {[%emt 0:02:29]} e5 {[%emt 0:00:45]} 8. h3 {[%emt 0:00:21]} Re8 {[%emt 0:05:59]} 9. d5 {[%emt 0:01:04]} Ne7 {[%emt 0:01:17]} 10. c4 {[%emt 0:00:17]} Nh5 {[%emt 0:03:17]} 11. Nc3 {[%emt 0:01:42]} h6 {[%emt 0:03:49] White is slightly better.} 12. Be3 {[%emt 0:02:18]} Nf4 {[%emt 0:00:41]} 13. Bf1 {[%emt 0:14:15]} f5 {[%emt 0:06:02]} 14. Bxf4 {[%emt 0:21:24]} exf4 {[%emt 0:00:17]} 15. e5 {[%emt 0:00:07]} dxe5 {[%emt 0:32:47]} 16. Nxe5 {[%emt 0:00:07] A dynamic duo of knights.} Rf8 $2 {[%emt 0:01:09] Black is weak on the light squares} ({Black should try} 16... Nxd5 $1 $14 17. Qxd5+ Qxd5 18. Nxd5 Rxe5 (18... Bxe5 $2 {is the wrong capture.} 19. Nxc7 Bd7 20. Nxa8 $18)) 17. c5 {[%emt 0:01:30]} Rf6 {[%emt 0:06:21] [#]} 18. d6 $1 {[%emt 0:19:25][%mdl 512]} cxd6 {[%emt 0:00:33]} 19. Bc4+ {[%emt 0:00:09]} d5 {[%emt 0:15:36]} 20. Nxd5 {[%emt 0:01:42]} Nxd5 {[%emt 0:00:06]} 21. Bxd5+ {[%emt 0:00:11]} ({Weaker is} 21. Qxd5+ Qxd5 22. Bxd5+ Be6 23. Bxb7 Rb8 $18) 21... Kh7 {[%emt 0:00:13]} 22. Qb3 {[%emt 0:03:06]} Qc7 {[%emt 0:04:33]} 23. Rad1 {[%emt 0:15:27]} Rf8 {[%emt 0:02:59] Dodges Bg8+} 24. Nd3 {[%emt 0:00:22]} Rb8 {[%emt 0:00:22]} 25. Qc4 {[%emt 0:00:38]} g5 {[%emt 0:00:18]} 26. b4 $1 {[%emt 0:01:00]} a6 {[%emt 0:01:27]} 27. Re2 {[%emt 0:01:29]} ({White should play} 27. a4 $18) 27... Bd7 $16 {[%emt 0:00:21] Prevents b5} 28. Rde1 {[%emt 0:06:37] Re7 is the strong threat. White is more active.} Bb5 {[%emt 0:01:57] [#]} (28... Rbe8 $16) 29. Qb3 $1 $36 {[%emt 0:00:41][%mdl 2048] Black is under strong pressure.} Rbe8 {[%emt 0:00:21] [#] Inhibits Re7.} 30. a4 {[%emt 0:00:48]} (30. Rxe8 $1 $18 Rxe8 31. Rxe8 Bxe8 32. a4) 30... Rxe2 $16 {[%emt 0:00:42]} 31. Rxe2 {[%emt 0:00:05]} Re8 $2 {[%emt 0:00:11]} (31... Bxd3 $16 32. Qxd3 a5) 32. Be6 {[%emt 0:00:38]} Bxd3 {[%emt 0:02:25]} 33. Qxd3 {[%emt 0:00:35]} Kh8 {[%emt 0:00:17]} 34. Qxf5 {[%emt 0:01:19] Qg6 would now be deadly.} Rf8 {[%emt 0:01:04]} 35. Qe4 {[%emt 0:01:22]} Re8 $2 {[%emt 0:00:41]} (35... f3 36. gxf3 Rf4) 36. Qg6 $18 {[%emt 0:00:16]} Qd8 {[%emt 0:01:12] [#]} 37. Bf5 $1 {[%emt 0:01:13] Weighted Error Value: White=0.17 (very precise) /Black=0.53.  Loses game:     	---       	Black=2      Mistake:       	White=2     	Black=2      Inaccurate:     	---       	Black=2      OK:         	White=10    	Black=7      Best:        	White=1     	Black=1      Strong:       	White=2     	---} 1-0

[Event "Catalonia Championship Absolute 2024"]
[Site "Salou Tarragona"]
[Date "2024.05.12"]
[Round "1.1"]
[White "Ayats Llobera, Gerard"]
[Black "Serrano Batova, Vicent"]
[Result "1/2-1/2"]
[ECO "B31"]
[WhiteElo "2449"]
[BlackElo "2137"]
[Annotator "RC"]
[PlyCount "166"]
[EventDate "2024.05.06"]
[EventType "k.o."]
[EventCountry "ESP"]
[SourceTitle "playchess.com"]
[Source "ChessBase"]
[SourceQuality "1"]
[TimeControl "5400+30"]

1. e4 {[%emt 0:00:04]} c5 {[%emt 0:00:03]} 2. Nf3 {[%emt 0:00:02]} Nc6 {[%emt 0:00:13]} 3. Bb5 {[%emt 0:00:52]} g6 {[%emt 0:00:19]} 4. Bxc6 {[%emt 0:00:07]} dxc6 {[%emt 0:00:02]} 5. Nc3 {[%emt 0:00:19]} Bg7 {[%emt 0:00:37]} 6. d3 {[%emt 0:00:14]} Nf6 {[%emt 0:01:18]} 7. h3 {[%emt 0:00:13]} Nd7 {[%emt 0:00:02]} 8. Be3 {[%emt 0:00:00]} e5 {[%emt 0:00:00]} 9. Qd2 {[%emt 0:00:00]} h6 {[%emt 0:00:00]} 10. O-O {[%emt 0:00:09]} b6 {[%emt 0:00:00]} 11. Nh2 {[%emt 0:00:10]} Nf8 {[%emt 0:00:11]} 12. f4 {[%emt 0:00:05]} exf4 {[%emt 0:00:04]} 13. Bxf4 {[%emt 0:00:03]} Ne6 {[%emt 0:00:28]} 14. Bg3 {[%emt 0:00:04]} Qg5 {[%emt 0:42:01]} 15. Qe1 {[%emt 0:00:07]} Nd4 {[%emt 0:00:18]} 16. Qf2 {[%emt 0:00:07]} O-O {[%emt 0:14:50]} 17. Rae1 {[%emt 0:04:32]} Qe7 {[%emt 0:07:48]} 18. Kh1 {[%emt 0:05:36]} Be6 {[%emt 0:00:24]} 19. e5 {[%emt 0:00:25]} Nf5 {[%emt 0:01:53]} 20. Ne4 {[%emt 0:02:02]} Qc7 {[%emt 0:03:12]} 21. Bf4 {[%emt 0:00:47]} g5 {[%emt 0:05:23]} 22. g4 {[%emt 0:02:21]} Nh4 {[%emt 0:04:19]} 23. Bg3 {[%emt 0:00:54]} Ng6 {[%emt 0:01:19]} 24. Nf3 {[%emt 0:11:30]} Qd7 {[%emt 0:02:13]} 25. Nfd2 {[%emt 0:02:06]} Qd4 {[%emt 0:04:43]} 26. Qxd4 {[%emt 0:09:45]} cxd4 {[%emt 0:00:02]} 27. Nd6 {[%emt 0:01:20]} Rad8 {[%emt 0:01:23]} 28. Nf5 {[%emt 0:06:41]} Rd5 {[%emt 0:01:51]} 29. Ne4 {[%emt 0:00:29]} Rfd8 {[%emt 0:02:21]} 30. Nxg7 {[%emt 0:08:31]} Kxg7 {[%emt 0:00:03]} 31. Nd6 {[%emt 0:01:10]} Rh8 {[%emt 0:07:15]} 32. Kg1 {[%emt 0:01:45]} Ra5 {[%emt 0:01:11]} 33. a3 {[%emt 0:00:16]} h5 {[%emt 0:00:16]} 34. Nf5+ {[%emt 0:00:09]} Bxf5 {[%emt 0:00:55]} 35. gxf5 {[%emt 0:01:18]} Nf4 {[%emt 0:00:29]} 36. Bxf4 {[%emt 0:04:34]} gxf4 {[%emt 0:00:01]} 37. Rxf4 {[%emt 0:40:13]} Re8 {[%emt 0:00:38]} 38. Rfe4 {[%emt 0:00:00]} Kh6 {[%emt 0:00:02]} 39. h4 {[%emt 0:00:00]} f6 {[%emt 0:01:04]} 40. Rxd4 {[%emt 0:00:00]} Raxe5 {[%emt 0:00:47]} 41. Rxe5 {[%emt 0:00:00]} Rxe5 {[%emt 0:00:26]} 42. Rd6 {[%emt 0:00:00]} Rxf5 {[%emt 0:00:02]} 43. Rxc6 {[%emt 0:00:00]} Rf4 {[%emt 0:00:16]} 44. Kg2 {[%emt 0:00:00]} Kg6 {[%emt 0:00:53]} 45. Rc4 {[%emt 0:00:00]} Rf5 {[%emt 0:00:53]} 46. b4 {[%emt 0:00:00]} Rd5 {[%emt 0:00:30]} 47. Rc7 {[%emt 0:00:00]} a5 {[%emt 0:00:14]} 48. Rc6 {[%emt 0:00:00]} axb4 {[%emt 0:00:30]} 49. axb4 {[%emt 0:00:00]} Re5 {[%emt 0:00:02]} 50. Kf3 {[%emt 0:00:00]} Rf5+ {[%emt 0:00:02]} 51. Ke3 {[%emt 0:00:00]} Re5+ {[%emt 0:00:48]} 52. Kf3 {[%emt 0:00:00]} Rf5+ {[%emt 0:00:04]} 53. Kg3 {[%emt 0:00:00]} Rb5 {[%emt 0:00:09]} 54. c3 {[%emt 0:00:00]} Kf5 {[%emt 0:00:09]} 55. Kf3 {[%emt 0:00:00]} Ke5 {[%emt 0:01:18]} 56. d4+ {[%emt 0:00:00]} Kd5 {[%emt 0:00:46]} 57. Rxf6 {[%emt 0:00:00]} Kc4 {[%emt 0:00:02]} 58. Rc6+ {[%emt 0:00:00]} Kd3 {[%emt 0:00:01]} 59. Kf4 {[%emt 0:00:00]} Rd5 {[%emt 0:00:11]} 60. c4 {[%emt 0:00:00]} Rxd4+ {[%emt 0:00:45]} 61. Kg5 {[%emt 0:00:00]} b5 {[%emt 0:00:09]} 62. cxb5 {[%emt 0:00:00]} Rd5+ {[%emt 0:00:02]} 63. Kg6 {[%emt 0:00:00]} Rxb5 {[%emt 0:00:50]} 64. Re6 {[%emt 0:00:00]} Rxb4 {[%emt 0:01:34]} 65. Kxh5 {[%emt 0:00:00]} Rb1 {[%emt 0:00:53]} 66. Kh6 {[%emt 0:00:00]} Kd4 {[%emt 0:00:41]} 67. h5 {[%emt 0:00:00]} Rh1 {[%emt 0:00:02]} 68. Kg6 {[%emt 0:00:00]} Kd5 {[%emt 0:00:35]} 69. Re2 {[%emt 0:00:00]} Rg1+ {[%emt 0:00:22]} 70. Kh7 {[%emt 0:00:00]} Kd6 {[%emt 0:00:12]} 71. h6 {[%emt 0:00:00]} Kd7 {[%emt 0:00:10]} 72. Kh8 {[%emt 0:00:00]} Rg6 {[%emt 0:00:49]} 73. Kh7 {[%emt 0:00:00]} Rg1 {[%emt 0:00:02]} 74. Ra2 {[%emt 0:06:55]} Ke7 {[%emt 0:00:22]} 75. Ra7+ {[%emt 0:00:08]} Kf8 {[%emt 0:00:29]} 76. Rg7 {[%emt 0:00:03]} Rh1 {[%emt 0:02:11]} 77. Rg3 {[%emt 0:00:02]} Rf1 {[%emt 0:00:20]} 78. Rg2 {[%emt 0:01:12]} Rf3 {[%emt 0:00:02]} 79. Kg6 {[%emt 0:00:05]} Kg8 {[%emt 0:00:37]} 80. h7+ {[%emt 0:00:11]} Kh8 {[%emt 0:00:02]} 81. Rd2 {[%emt 0:00:05]} Rg3+ {[%emt 0:00:08]} 82. Kh6 {[%emt 0:00:04]} Rh3+ {[%emt 0:00:04]} 83. Kg6 {[%emt 0:00:02]} Rg3+ {[%emt 0:00:06]} 1/2-1/2

[Event "Catalonia Championship Absolute 2024"]
[Site "Salou Tarragona"]
[Date "2024.05.12"]
[Round "1.1"]
[White "Narciso Dublan, Marc"]
[Black "Perpinya Rofes, Lluis Maria"]
[Result "1/2-1/2"]
[ECO "A27"]
[WhiteElo "2424"]
[BlackElo "2205"]
[Annotator "TA"]
[PlyCount "99"]
[EventDate "2024.05.06"]
[EventType "k.o."]
[EventCountry "ESP"]
[SourceTitle "playchess.com"]
[Source "ChessBase"]
[SourceQuality "1"]
[TimeControl "5400+30"]

{[%evp 20,99,42,40,48,54,43,57,52,47,80,36,58,51,87,114,107,110,101,102,101,125,125,112,174,183,185,179,183,189,185,183,199,182,202,169,147,47,207,-132,-131,-127,-127,-134,-124,-130,-121,-120,-121,-150,-144,-146,-161,-409,-431,-393,-414,-406,-420,-376,-352,-373,-367,-404,-323,-390,-369,-377,-66,-50,0,0,0,0,0,0,0,0,0,0,0,0]} 1. c4 {[%emt 0:00:17]} e5 {[%emt 0:00:32]} 2. Nc3 {[%emt 0:00:22]} Nc6 {[%emt 0:00:23]} 3. Nf3 {[%emt 0:00:23]} g6 {[%emt 0:01:08]} 4. d4 {[%emt 0:00:22]} exd4 {[%emt 0:00:46]} 5. Nxd4 {[%emt 0:00:30]} Bg7 {[%emt 0:00:20]} 6. Nxc6 {[%emt 0:00:17]} bxc6 {[%emt 0:00:32]} 7. g3 {[%emt 0:00:44]} Ne7 {[%emt 0:02:48]} 8. Bg2 {[%emt 0:00:31]} O-O {[%emt 0:01:27]} 9. O-O {[%emt 0:00:19]} d6 {[%emt 0:06:05]} 10. Bg5 {[%emt 0:19:29]} Rb8 {[%emt 0:06:58]} 11. Qd2 {[%emt 0:03:43]} Be6 {[%emt 0:02:31]} 12. b3 {[%emt 0:00:43]} c5 {[%emt 0:09:54]} 13. Rad1 {[%emt 0:02:24]} f6 {[%emt 0:02:10] White is slightly better.} 14. Bf4 {[%emt 0:04:34]} Re8 {[%emt 0:05:40]} 15. Na4 {[%emt 0:06:10]} (15. Nb5 {seems wilder.} a6 16. Nxc7 Qxc7 17. Bxd6 Qb6 18. Bxb8 Rxb8 19. Qd6) 15... Qc8 {[%emt 0:03:38]} 16. Qa5 $36 {[%emt 0:01:22][%mdl 2048] White is pushing.} Bd7 {[%emt 0:07:24] [#]} 17. Nxc5 $1 {[%emt 0:11:25]} dxc5 {[%emt 0:13:21]} 18. Qxc7 {[%emt 0:00:49] White is much more active.} Qxc7 {[%emt 0:01:14]} 19. Bxc7 {[%emt 0:00:09]} Be6 {[%emt 0:01:32]} 20. Bxb8 {[%emt 0:00:29]} Rxb8 {[%emt 0:00:28]} 21. Rd6 {[%emt 0:02:24]} Kf7 {[%emt 0:03:04]} (21... Bc8 $16 {was worth a try.} 22. Rfd1 Kf7) 22. Ra6 $18 {[%emt 0:05:37]} Nc8 {[%emt 0:01:10]} 23. Rc6 {[%emt 0:00:17]} Bf8 {[%emt 0:01:08]} 24. Rd1 {[%emt 0:01:41] Prevents Bd6} Be7 {[%emt 0:05:22]} 25. Rc7 {[%emt 0:01:06] Black must now prevent Rd8.} Kf8 {[%emt 0:01:13]} 26. Bc6 {[%emt 0:06:47]} a5 {[%emt 0:07:47]} 27. Rd3 {[%emt 0:07:43]} h5 {[%emt 0:11:37]} 28. f3 {[%emt 0:01:10]} ({White should try} 28. Bd7 $16 Bg4 29. Bxg4 hxg4 30. Re3) 28... Rb6 $2 {[%emt 0:01:40] [#]} (28... Bd6 $14 29. Rb7 (29. Rxc8+ Rxc8 30. Rxd6 Ke7 $17) 29... Rxb7 30. Bxb7 Ke7) 29. Re3 $2 {[%emt 0:02:07] [#]} ({Better is} 29. Bd7 $1 $18 Bxd7 30. Rdxd7) 29... Bd8 $1 $17 {[%emt 0:00:00]} 30. Rxe6 {[%emt 0:10:17][%csl Gc6][%cal Re6e8]} Bxc7 {[%emt 0:00:56]} 31. Re8+ {[%emt 0:00:07]} Kf7 {[%emt 0:00:25] Hoping for ...Nd6.} 32. Ba4 {[%emt 0:00:07]} Ne7 {[%emt 0:01:45]} 33. Ra8 {[%emt 0:00:19]} Rd6 {[%emt 0:00:37]} 34. Ra7 {[%emt 0:01:24]} Rd1+ {[%emt 0:00:36]} 35. Kf2 {[%emt 0:00:29]} Be5 {[%emt 0:00:45] ...Bd4+ is the strong threat.} 36. b4 $2 {[%emt 0:07:20]} (36. Bc6 {might work better.}) 36... Bd4+ $19 {[%emt 0:00:22]} 37. e3 {[%emt 0:00:06]} Rd2+ {[%emt 0:00:13]} 38. Kf1 {[%emt 0:00:36]} Bxe3 {[%emt 0:00:28]} 39. bxa5 {[%emt 0:02:03]} Rf2+ {[%emt 0:00:16]} 40. Ke1 {[%emt 0:00:06]} Rxa2 {[%emt 0:00:05]} 41. Bc6 {[%emt 0:01:37]} Bd2+ {[%emt 0:00:29]} ({Weaker is} 41... Rxh2 42. Bd5+ Ke8 43. Ra8+ Kd7 44. Ra7+ Kd6 45. Ra6+ Ke5 46. Re6+ Kd4 47. Rxe7 $15) 42. Kd1 {[%emt 0:00:06]} Rxa5 {[%emt 0:01:39]} ({Not} 42... Bxa5 43. Bd5+ Kf8 44. Ra8+ Kg7 45. Ra7 $17) 43. Rb7 {[%emt 0:00:27]} Bh6 {[%emt 0:00:45]} (43... Bb4 $19 44. Bd5+ Kf8 45. Rb8+ Kg7) 44. Bd5+ $1 $15 {[%emt 0:00:16]} Kf8 {[%emt 0:00:30]} (44... Ke8 $1 $15 45. Rb8+ Kd7 46. Rb7+ Kd8 47. Rb8+ Nc8) 45. Rb8+ $1 $11 {[%emt 0:00:05] The position is equal.} Kg7 {[%emt 0:00:17]} 46. Rb7 $1 {[%emt 0:00:02]} Ra1+ {[%emt 0:00:35]} 47. Ke2 {[%emt 0:00:42]} Ra2+ {[%emt 0:00:06]} 48. Kf1 {[%emt 0:01:46]} Ra1+ {[%emt 0:00:27]} 49. Ke2 {[%emt 0:00:06]} Ra2+ {[%emt 0:00:33]} 50. Kf1 {[%emt 0:00:05] White used his chance.   Weighted Error Value: White=0.25 (precise) /Black=0.29 (precise) .  Missed win:     	White=1     	Black=1      Mistake:       	White=2     	Black=3      Inaccurate:     	White=1     	Black=2      OK:         	White=16    	Black=14     Best:        	White=5     	Black=2      Strong:       	White=3     	Black=1      Brilliant:      	White=1     	---} 1/2-1/2

[Event "Catalonia Championship Absolute 2024"]
[Site "Salou Tarragona"]
[Date "2024.05.12"]
[Round "1.1"]
[White "Lorenzo De La Riva, Lazaro"]
[Black "Lemeshev, Ilya"]
[Result "1-0"]
[ECO "B12"]
[WhiteElo "2422"]
[BlackElo "2313"]
[Annotator "TA"]
[PlyCount "79"]
[EventDate "2024.05.06"]
[EventType "k.o."]
[EventCountry "ESP"]
[SourceTitle "playchess.com"]
[Source "ChessBase"]
[SourceQuality "1"]
[TimeControl "5400+30"]

{[%evp 12,79,3,3,14,16,25,14,17,6,34,36,41,33,41,40,49,34,44,42,37,41,49,-24,45,35,88,99,94,95,105,95,112,106,129,133,125,114,168,80,205,215,220,221,476,484,493,469,485,474,565,514,558,550,842,842,801,551,1134,529,517,514,503,503,478,460,29979,29979,29988,29989]} 1. e4 {[%emt 0:00:12]} c6 {[%emt 0:00:06]} 2. d4 {[%emt 0:00:11]} d5 {[%emt 0:00:08]} 3. e5 {[%emt 0:00:12]} Bf5 {[%emt 0:00:11]} 4. h4 {[%emt 0:00:20]} h5 {[%emt 0:01:51]} 5. Bd3 {[%emt 0:00:03]} Bxd3 {[%emt 0:00:42]} 6. Qxd3 {[%emt 0:00:03]} e6 {[%emt 0:00:13]} 7. Nf3 {[%emt 0:00:08]} Ne7 {[%emt 0:06:33][%cal Oc6c5]} 8. Bg5 {[%emt 0:00:09] Black is weak on the dark squares} Qb6 {[%emt 0:00:40]} 9. Nbd2 {[%emt 0:00:04][%cal Bb1d2,Bd2f1,Bf1e3][%mdl 32]} Nf5 {[%emt 0:01:38][%cal Oc6c5] The position is equal.} 10. O-O {[%emt 0:00:08]} Be7 {[%emt 0:02:26]} 11. Bxe7 {[%emt 0:00:34]} Nxe7 {[%emt 0:00:09]} 12. c4 {[%emt 0:00:06]} Nf5 {[%emt 0:03:11]} 13. Rfc1 {[%emt 0:07:06] [#] And now cxd5 would win.} O-O {[%emt 0:07:07]} 14. Nf1 {[%emt 0:00:35]} Qd8 {[%emt 0:13:41]} 15. g3 {[%emt 0:00:36]} dxc4 {[%emt 0:02:34]} 16. Rxc4 {[%emt 0:00:08]} Na6 {[%emt 0:02:21][%cal Oc6c5]} 17. Ng5 {[%emt 0:02:31]} ({White should play} 17. Rd1 $14) 17... Qd7 {[%emt 0:04:30]} (17... b5 $1 $11 18. Rc3 (18. Rxc6 $2 Nb4 $19) 18... Qxd4 (18... Nxd4 19. Qh7#)) 18. Ne3 {[%emt 0:02:06]} Rae8 {[%emt 0:03:12]} (18... Nc7 $1 $14) 19. Qe2 $16 {[%emt 0:01:42]} f6 {[%emt 0:02:18]} 20. exf6 $40 {[%emt 0:00:35][%mdl 128] White is out for blood.} gxf6 {[%emt 0:00:19]} 21. Ne4 {[%emt 0:03:25][%cal Bg5e4,Be4d6,Bd6f5][%mdl 32]} Nxe3 {[%emt 0:05:55]} 22. Qxe3 {[%emt 0:01:55]} Qg7 {[%emt 0:00:52] Wards off Qh6} 23. Nd6 {[%emt 0:02:26]} Re7 {[%emt 0:00:15]} 24. Re1 {[%emt 0:00:02] White has more active pieces.} Qh7 {[%emt 0:03:30] Inhibits Nf5.} (24... f5 $16) 25. Qf3 {[%emt 0:08:36]} (25. Ra4 $18) 25... Qg6 {[%emt 0:05:55] Black cannot hold the game after this.} (25... f5 $16) 26. Ra4 {[%emt 0:01:52]} Qc2 {[%emt 0:03:18]} 27. b3 {[%emt 0:00:53][%cal Od6b7]} Nb4 $2 {[%emt 0:00:21]} (27... f5 28. Qxh5 Nc7 29. Rxa7 (29. Nxb7 f4 $14) 29... Qc3) 28. Nf5 $18 {[%emt 0:11:27]} (28. Rxb4 Qd2 29. Rxb7 Qxe1+ 30. Kg2 Rxb7 31. Nxb7 e5 $11) (28. Rxa7 Qh7 29. a4 e5 $11) (28. Qxh5 Nd3 29. Rf1 b5 $18) 28... Ree8 {[%emt 0:01:19]} 29. Nh6+ {[%emt 0:00:40]} (29. Rxb4 exf5 30. Rxe8 Rxe8 31. Rxb7 Re1+ 32. Kg2 Qe4 33. Qxe4 (33. Rxa7 $2 Rg1+ 34. Kxg1 Qxf3 $19) 33... fxe4 34. Rxa7 Rd1) 29... Kg7 {[%emt 0:00:35]} 30. Rxb4 {[%emt 0:00:08]} ({Worse is} 30. Qxh5 Nd5 31. Rxa7 Rb8 $11) 30... b5 {[%emt 0:01:41]} 31. d5 {[%emt 0:02:07]} Kxh6 {[%emt 0:01:24]} 32. dxe6 {[%emt 0:01:20]} Re7 {[%emt 0:01:31]} 33. Rf4 {[%emt 0:00:06]} Qg6 {[%emt 0:01:46]} 34. Qxc6 {[%emt 0:00:24]} f5 {[%emt 0:00:41]} 35. Qxb5 {[%emt 0:03:16]} (35. Qc5 $142 Ree8 36. Re5 (36. Qxb5 Rxe6 37. Re5 a6 $18)) 35... Rxe6 {[%emt 0:00:31]} 36. Rxe6 {[%emt 0:00:13]} Qxe6 {[%emt 0:00:06]} 37. Ra4 {[%emt 0:00:17][%cal Oa4a6] [#] Threatens to win with Ra6!} Rf6 {[%emt 0:01:46]} 38. Rxa7 {[%emt 0:00:18] Strongly threatening Qb8.} Rg6 {[%emt 0:00:23]} (38... Qe1+ $18 39. Qf1 Qxf1+ 40. Kxf1 f4 41. gxf4 Rxf4) 39. Qb8 {[%emt 0:05:30][%cal Rb8h8]} Rxg3+ {[%emt 0:03:26]} 40. Qxg3 {[%emt 0:00:13] Weighted Error Value: White=0.32/Black=0.52.  Mistake:       	White=2     	Black=6      Inaccurate:     	---       	Black=2      OK:         	White=17    	Black=10     Best:        	White=3     	Black=1} ({Inferior is} 40. fxg3 Qe1+ 41. Kg2 Qe2+ 42. Kg1 Qe1+ 43. Kg2 Qe2+ 44. Kg1 Qe1+ $11) 1-0